[Event "German Bundesliga 2024-25"]
[Site "Germany"]
[Date "2025.01.12"]
[Round "6"]
[White "Aravindh, Chithambaram VR."]
[Black "Moussard, Jules"]
[Result "1-0"]
[Annotator "TA"]
[ECO "D64"]
[WhiteElo "2706"]
[BlackElo "2599"]
[PlyCount "113"]
[EventDate "2024.09.27"]
[EventType "team-tourn"]
[EventCountry "GER"]
[SourceTitle "playchess.com"]
[Source "ChessBase"]
[SourceQuality "1"]
[WhiteTeam "Viernheim"]
[BlackTeam "Deizisau"]
[TimeControl "40/5400+30:1800+30"]

{[%evp 19,113,11,19,0,20,21,22,0,-5,-6,0,-10,0,0,0,0,128,120,129,77,112,116,109,98,102,93,98,97,72,115,79,94,70,83,138,137,412,425,449,457,475,377,366,327,323,328,312,248,242,246,247,237,231,237,249,237,245,240,283,298,331,334,355,316,337,325,313,291,342,317,355,347,341,345,352,352,378,374,347,338,369,366,390,383,382,388,382,367,904,904,4137,2518,777,779,748,749]} 1. d4 {[%emt 0:01:00]} Nf6 {[%emt 0:01:00]} 2. c4 {[%emt 0:00:00]} e6 {[%emt 0:00:00]} 3. Nc3 {[%emt 0:00:00]} d5 {[%emt 0:00:00]} 4. Bg5 {[%emt 0:00:30]} Be7 {[%emt 0:02:30]} 5. e3 {[%emt 0:00:30]} h6 {[%emt 0:02:30]} 6. Bh4 {[%emt 0:00:00]} O-O {[%emt 0:00:30]} 7. Nf3 {[%emt 0:00:00]} Nbd7 {[%emt 0:03:30]} 8. Rc1 {[%emt 0:00:30]} c6 {[%emt 0:02:30]} 9. Qc2 {[%emt 0:02:30]} a6 {[%emt 0:08:30]} 10. a3 {[%emt 0:05:30]} Re8 {[%emt 0:18:30]} 11. Rd1 {[%emt 0:21:30]} Nh5 {[%emt 0:09:30]} 12. Bxe7 {[%emt 0:01:30]} Qxe7 {[%emt 0:00:30]} 13. g4 {[%emt 0:01:30] The position is equal.} Nhf6 {[%emt 0:01:30]} 14. g5 {[%emt 0:01:30]} hxg5 {[%emt 0:03:30]} 15. Nxg5 {[%emt 0:00:30]} Nf8 {[%emt 0:00:30]} 16. Rg1 {[%emt 0:07:30]} e5 {[%emt 0:07:30]} 17. cxd5 {[%emt 0:00:30]} Ng4 {[%emt 0:04:30] [#]} (17... cxd5 $11 {remains equal.} 18. Qb3 Rd8) 18. Nge4 $1 $36 {[%emt 0:15:30][%mdl 2048] White is in control.} Bf5 {[%emt 0:08:30] [#]} 19. Qe2 {[%emt 0:15:30]} (19. dxc6 $142 $1 {And now Qe2 would win.} exd4 20. Rxd4 bxc6 21. Qe2) 19... Nf6 {[%emt 0:07:08]} 20. Nxf6+ {[%emt 0:07:45]} Qxf6 {[%emt 0:00:04]} 21. dxe5 {[%emt 0:00:19]} Rxe5 {[%emt 0:05:27]} 22. Qf3 {[%emt 0:00:08]} Ng6 {[%emt 0:00:28]} 23. Be2 {[%emt 0:00:51]} Rae8 {[%emt 0:04:21]} 24. d6 {[%emt 0:04:51][%cal Bd5d6,Bd6d7][%mdl 32]} R5e6 {[%emt 0:07:27][%cal Oe8d8,Be5e6,Be6f6,Bf6f4][%mdl 32]} 25. d7 {[%emt 0:06:07]} Rd8 {[%emt 0:00:05]} 26. e4 {[%emt 0:00:06] The board is on fire. White is more active.} Bxe4 {[%emt 0:02:23]} 27. Nxe4 {[%emt 0:01:32]} Qxb2 {[%emt 0:00:32][%mdl 8192] This costs Black the game.} (27... Qxf3 $16 {was necessary.} 28. Bxf3 Nh4) 28. Kf1 $18 {[%emt 0:01:45][%cal Og1g6] aiming for Rxg6!} Qe5 {[%emt 0:00:31]} 29. Ng5 {[%emt 0:00:35]} Rf6 {[%emt 0:00:08]} 30. Qe4 {[%emt 0:03:11]} Rf4 {[%emt 0:00:36]} 31. Qxe5 {[%emt 0:00:37]} Nxe5 {[%emt 0:00:30]} 32. Rg3 {[%emt 0:00:53] Strongly threatening Re3.} Rxd7 {[%emt 0:00:00]} 33. Rxd7 {[%emt 0:00:28]} Nxd7 {[%emt 0:00:00]} 34. Rd3 {[%emt 0:00:43]} Nf8 {[%emt 0:00:20]} 35. Rd8 {[%emt 0:00:07]} g6 {[%emt 0:00:35]} 36. Rc8 {[%emt 0:00:30]} Rd4 {[%emt 0:00:14]} 37. Rb8 {[%emt 0:00:44]} b5 {[%emt 0:01:11]} 38. Rc8 {[%emt 0:00:56]} Rd5 {[%emt 0:01:20]} 39. Ne4 {[%emt 0:01:04]} Kg7 {[%emt 0:00:38] Repels Nf6} 40. Rxc6 {[%emt 0:00:11]} Rd4 {[%emt 0:00:29]} 41. Nc3 {[%emt 0:31:04]} b4 {[%emt 0:30:07]} 42. axb4 {[%emt 0:00:08]} Rxb4 {[%emt 0:00:03]} 43. Rxa6 {[%emt 0:00:11]} Nd7 {[%emt 0:00:00]} 44. Nd5 {[%emt 0:00:00]} Rb1+ {[%emt 0:00:00]} 45. Kg2 {[%emt 0:00:00]} Rb2 {[%emt 0:00:00]} 46. Bc4 {[%emt 0:00:00]} Ne5 {[%emt 0:00:00]} 47. Ne3 {[%emt 0:00:00]} Rb4 {[%emt 0:00:00]} 48. Bd5 {[%emt 0:00:00]} f5 {[%emt 0:00:00]} 49. Ra7+ {[%emt 0:00:00]} Kh6 {[%emt 0:00:00]} 50. Re7 {[%emt 0:00:00]} Nd3 {[%emt 0:00:00]} 51. Bc4 {[%emt 0:00:00]} Nf4+ {[%emt 0:00:00]} 52. Kg3 {[%emt 0:00:00]} Nh5+ {[%emt 0:00:00]} 53. Kf3 {[%emt 0:00:00]} Kg5 $2 {[%emt 0:00:00]} (53... Ra4 54. Rd7 Ra3) 54. Re6 {[%emt 0:00:00] White is clearly winning.} Ng7 {[%emt 0:00:00]} 55. Rc6 {[%emt 0:00:00]} Rb7 {[%emt 0:00:00] [#]} 56. h4+ $1 {[%emt 0:00:00]} Kh6 {[%emt 0:00:00]} 57. Rf6 {[%emt 0:00:00] Weighted Error Value: White=0.12 (very precise) /Black=0.26 (precise) .  Loses game:     	---       	Black=1      Mistake:       	White=1     	Black=3      Inaccurate:     	White=1     	Black=2      OK:         	White=28    	Black=18     Best:        	White=3     	---        Strong:       	White=1     	---} 1-0

[Event "German Bundesliga 2024-25"]
[Site "Germany"]
[Date "2025.01.12"]
[Round "6"]
[White "Kasimdzhanov, Rustam"]
[Black "Kosakowski, Jakub"]
[Result "1-0"]
[Annotator "TA"]
[ECO "A20"]
[WhiteElo "2685"]
[BlackElo "2516"]
[PlyCount "101"]
[EventDate "2024.09.27"]
[EventType "team-tourn"]
[EventCountry "GER"]
[SourceTitle "playchess.com"]
[Source "ChessBase"]
[SourceQuality "1"]
[WhiteTeam "Baden-Baden"]
[BlackTeam "Heimbach-Weis-Neuwied"]
[TimeControl "40/5400+30:1800+30"]

{[%evp 9,101,4,33,10,13,10,8,0,14,0,14,5,28,17,35,35,46,45,48,64,61,62,45,12,28,33,40,37,41,0,0,0,0,0,0,13,122,117,163,153,184,183,197,179,183,176,197,186,183,192,180,182,186,194,330,316,391,393,402,380,403,408,408,273,1079,1026,831,822,1170,1115,951,507,1128,941,12797,12797,12831,12839,12843,2038,29946,29942,29942,29945,29953,29954,29943,29946,29953,29959,29961,29962,12802,6095]} 1. c4 {[%emt 0:01:00]} e5 {[%emt 0:01:00]} 2. g3 {[%emt 0:00:00]} Nf6 {[%emt 0:00:30]} 3. Bg2 {[%emt 0:00:00]} c6 {[%emt 0:00:30]} 4. Nf3 {[%emt 0:00:30]} e4 {[%emt 0:00:30]} 5. Nd4 {[%emt 0:00:30]} Qb6 {[%emt 0:00:00]} 6. e3 {[%emt 0:00:30]} d5 {[%emt 0:01:00]} 7. Nc3 {[%emt 0:00:30]} Bg4 {[%emt 0:00:30]} 8. Qb3 {[%emt 0:00:00]} Bc5 {[%emt 0:02:30]} 9. h3 {[%emt 0:00:00]} Bd7 {[%emt 0:11:30]} 10. Qxb6 {[%emt 0:07:30]} axb6 {[%emt 0:05:30]} 11. cxd5 {[%emt 0:00:30]} cxd5 {[%emt 0:02:30]} 12. Ndb5 {[%emt 0:02:30]} Kd8 {[%emt 0:16:30] Prevents Nc7} 13. O-O {[%emt 0:20:30]} Nc6 {[%emt 0:04:30] [#]} 14. d3 $1 {[%emt 0:12:30]} exd3 {[%emt 0:01:30]} 15. Rd1 $1 {[%emt 0:07:30][%cal Oa2a3,Bf1d1,Bd1d3,Bd3c3,Bc3c6,Bc6d6][%mdl 32]} (15. Bxd5 $2 Nxd5 (15... Bxh3 16. Bg2 $15) 16. Nxd5 Ne5 $19 (16... Bxh3 17. Rd1 $15)) 15... Ne5 {[%emt 0:04:30]} 16. Nd4 {[%emt 0:15:30][%mdl 1024] White has compensation.} h5 {[%emt 0:19:30]} 17. b3 {[%emt 0:03:30]} Ke7 {[%emt 0:03:30]} 18. Bb2 {[%emt 0:02:30]} Rad8 {[%emt 0:00:30]} 19. f4 {[%emt 0:12:08]} (19. a4 $5) 19... Nc6 $1 {[%emt 0:01:30]} 20. Rxd3 {[%emt 0:00:30]} Rhe8 {[%emt 0:00:30]} 21. Nxc6+ {[%emt 0:08:23]} (21. Bxd5 $2 Nb4 (21... Bxh3 $2 22. Bxc6 Bxd4 23. Bxe8 $18) 22. Bc4 Nxd3 (22... Bxh3 23. Rd2 $17) 23. Bxd3 Kf8 $19 (23... Bxh3 $2 24. Bb5 $19)) (21. Nxd5+ Nxd5 22. Bxd5 Nb4 $19 (22... Bxh3 $2 23. Bxc6 Bxd4 24. Bxe8 $18)) 21... bxc6 {[%emt 0:01:30]} 22. Na4 {[%emt 0:00:14]} Bd6 {[%emt 0:15:39]} (22... Ne4 $11 {keeps the balance.}) 23. Nxb6 $16 {[%emt 0:01:48]} Bf5 {[%emt 0:00:06]} (23... Bc5 $16 24. Nxd7 Nxd7) 24. Rc3 $1 $18 {[%emt 0:01:18]} Kf8 {[%emt 0:05:57]} 25. Rxc6 {[%emt 0:01:08]} Rxe3 {[%emt 0:00:46] [#]} 26. Rxd6 $1 {[%emt 0:00:18][%mdl 512]} Rxd6 {[%emt 0:00:02]} 27. Ba3 $1 {[%emt 0:00:06][%csl LRd5,LRd6] This pair of bishops is nice.} Ke7 {[%emt 0:00:06][%cal Oe7e6,Bf8e7,Be7d8,Bd8d7][%mdl 32] [#]} 28. Kf2 $1 {[%emt 0:01:38]} (28. Bxd6+ Kxd6 29. Kh2 Re2 $15) 28... Rd3 {[%emt 0:01:08][%cal Oe7e6]} 29. Re1+ {[%emt 0:00:42]} (29. Bxd6+ Kxd6 30. Re1 Kc5 31. Na4+ Kd4 $15) 29... Be4 {[%emt 0:00:44][%cal Oe7e6] [#]} 30. Nxd5+ $1 {[%emt 0:00:55][%mdl 512]} Kd8 {[%emt 0:00:29] and ...Rd2+ should not be overlooked} 31. Bxd6 {[%emt 0:00:44]} Rd2+ {[%emt 0:00:14]} (31... Bxd5 {is a better defense.} 32. Bxd5 Nxd5) 32. Re2 {[%emt 0:00:25]} Rxe2+ {[%emt 0:00:41]} 33. Kxe2 {[%emt 0:00:09]} Bxg2 {[%emt 0:00:04][%mdl 4096] Endgame KBN-KBN. White is two pawns up.} 34. Be7+ {[%emt 0:00:39]} Kd7 {[%emt 0:00:50]} 35. Bxf6 {[%emt 0:00:43]} ({Not} 35. Nxf6+ Kxe7 36. Kf2 (36. Nxh5 g6 $15) 36... Bc6 $16) 35... Bxd5 {[%emt 0:00:34]} 36. Bxg7 {[%emt 0:00:04] Hoping for Ke3. KB-KB. White is 3 pawns up.} Be6 $2 {[%emt 0:00:21]} (36... Bg2 37. h4 Be4) 37. h4 {[%emt 0:00:32]} Kc6 {[%emt 0:00:43]} 38. Kd3 {[%emt 0:00:31]} Bf5+ {[%emt 0:00:19]} 39. Kc4 {[%emt 0:00:52]} Bg4 {[%emt 0:00:40]} 40. Bf8 {[%emt 0:00:36]} Bd1 {[%emt 0:00:00]} (40... Kd7 $142 41. Kc5 Be6) 41. f5 {[%emt 0:07:07]} f6 {[%emt 0:03:37]} 42. Be7 {[%emt 0:00:30][%cal Oa2a4]} Bg4 {[%emt 0:00:30]} 43. Bxf6 {[%emt 0:08:10] White wants to mate with a4.} Bxf5 {[%emt 0:00:00]} 44. Bg5 {[%emt 0:02:45]} Bg4 {[%emt 0:00:00]} 45. a4 {[%emt 0:01:38]} Bd1 {[%emt 0:00:30]} 46. Kb4 {[%emt 0:00:05]} Bc2 {[%emt 0:04:30]} 47. Ka3 {[%emt 0:00:18]} Kd5 {[%emt 0:00:30]} 48. b4 {[%emt 0:00:30][%cal Bb3b4,Bb4b5,Bb5b6][%mdl 32]} Bd1 {[%emt 0:01:30]} 49. b5 {[%emt 0:00:25]} Kc4 {[%emt 0:00:00]} 50. b6 {[%emt 0:05:28]} Bf3 {[%emt 0:00:00] [#]} 51. g4 $1 {[%emt 0:00:03]} 1-0

[Event "German Bundesliga 2024-25"]
[Site "Germany"]
[Date "2025.01.12"]
[Round "6"]
[White "Maghsoodloo, Parham"]
[Black "Gledura, Benjamin"]
[Result "1-0"]
[Annotator "TA"]
[ECO "E44"]
[WhiteElo "2674"]
[BlackElo "2652"]
[PlyCount "55"]
[EventDate "2024.09.27"]
[EventType "team-tourn"]
[EventCountry "GER"]
[SourceTitle "playchess.com"]
[Source "ChessBase"]
[SourceQuality "1"]
[WhiteTeam "Viernheim"]
[BlackTeam "Deizisau"]
[TimeControl "40/5400+30:1800+30"]

{[%evp 13,55,11,18,19,17,14,25,21,16,-10,-5,-16,-15,-30,-26,-26,-3,-21,-25,-13,41,41,33,33,56,81,212,212,508,432,608,595,598,577,748,556,543,532,1877,1761,1701,2285,29990,29991]} 1. d4 {[%emt 0:01:00]} Nf6 {[%emt 0:01:00][%cal Bg8f6,Bf6e4,Be4d2][%mdl 32]} 2. c4 {[%emt 0:00:30]} e6 {[%emt 0:00:00]} 3. Nc3 {[%emt 0:00:00]} Bb4 {[%emt 0:00:00]} 4. e3 {[%emt 0:00:00]} b6 {[%emt 0:01:30]} 5. Nge2 {[%emt 0:00:30]} Ne4 {[%emt 0:00:30]} 6. Bd2 {[%emt 0:03:30]} Nxd2 {[%emt 0:00:30]} 7. Qxd2 {[%emt 0:00:30]} Bb7 {[%emt 0:00:30]} 8. a3 {[%emt 0:02:30]} Be7 {[%emt 0:00:00]} 9. d5 {[%emt 0:07:30]} O-O {[%emt 0:01:00]} 10. f4 {[%emt 0:07:30]} a5 {[%emt 0:14:30]} 11. g4 {[%emt 0:17:30]} Na6 {[%emt 0:11:30]} 12. Ng3 {[%emt 0:06:30]} Re8 {[%emt 0:22:30]} 13. O-O-O {[%emt 0:15:30]} Nc5 {[%emt 0:01:30] White must now prevent ...Nb3+.} 14. Kb1 {[%emt 0:00:30]} Bf8 {[%emt 0:01:30]} 15. g5 {[%emt 0:13:30]} exd5 {[%emt 0:08:30]} 16. cxd5 {[%emt 0:03:12] [#]} b5 {[%emt 0:09:30]} 17. Bxb5 $14 {[%emt 0:00:48]} Ba6 $1 {[%emt 0:02:30]} 18. a4 {[%emt 0:12:04]} Qc8 {[%emt 0:05:05]} 19. Nf5 {[%emt 0:00:39]} c6 {[%emt 0:02:43] [#]} (19... Bxb5 $16 20. axb5 c6) 20. Nh6+ $1 $18 {[%emt 0:02:51]} gxh6 $2 {[%emt 0:05:45]} (20... Kh8 {was called for.}) 21. gxh6 {[%emt 0:00:35]} Qd8 {[%emt 0:00:30] [#]} (21... cxb5 22. Rhg1+) (21... Nb3 $142 22. Qg2+ Kh8) 22. Qd4 $1 {[%emt 0:00:05] Threatening mate with Rhg1+.} f6 {[%emt 0:00:58]} 23. dxc6 {[%emt 0:00:07]} Re6 {[%emt 0:03:40]} 24. f5 {[%emt 0:01:10]} Re5 {[%emt 0:02:22] Black is weak on the light squares} 25. Bxa6 {[%emt 0:01:23]} (25. cxd7 Kh8 $18) 25... Nxa6 {[%emt 0:02:09]} 26. Qg4+ {[%emt 0:00:38]} ({Not} 26. cxd7 Kh8 27. Nb5 Nc5 $18) (26. Qxd7 Qxd7 27. Rxd7 Rc5 $16) 26... Kh8 {[%emt 0:00:08]} 27. Rxd7 {[%emt 0:00:04]} ({Worse is} 27. cxd7 Nc5 $11) 27... Qe8 {[%emt 0:02:14] [#]} 28. Rg7 $1 {[%emt 0:00:11][%mdl 512]} 1-0

[Event "German Bundesliga 2024-25"]
[Site "Germany"]
[Date "2025.01.12"]
[Round "6"]
[White "Kollars, Dmitrij"]
[Black "Abdusattorov, Nodirbek"]
[Result "1/2-1/2"]
[Annotator "TA"]
[ECO "B17"]
[WhiteElo "2641"]
[BlackElo "2768"]
[PlyCount "60"]
[EventDate "2024.09.27"]
[EventType "team-tourn"]
[EventCountry "GER"]
[SourceTitle "playchess.com"]
[Source "ChessBase"]
[SourceQuality "1"]
[WhiteTeam "Deizisau"]
[BlackTeam "Viernheim"]
[TimeControl "40/5400+30:1800+30"]

{[%evp 20,60,19,17,31,32,25,12,20,14,11,16,20,11,19,13,5,4,24,20,20,24,27,20,41,41,51,48,39,41,42,25,25,25,25,25,38,25,25,25,33,33,40]} 1. e4 {[%emt 0:02:00]} c6 {[%emt 0:01:00]} 2. d4 {[%emt 0:00:30]} d5 {[%emt 0:00:00]} 3. Nc3 {[%emt 0:00:30]} dxe4 {[%emt 0:01:00]} 4. Nxe4 {[%emt 0:00:00]} Nd7 {[%emt 0:00:00]} 5. Nf3 {[%emt 0:02:00]} Ngf6 {[%emt 0:00:00]} 6. Nxf6+ {[%emt 0:00:30]} Nxf6 {[%emt 0:00:30]} 7. Ne5 {[%emt 0:01:30]} Be6 {[%emt 0:03:30]} 8. Be2 {[%emt 0:02:30]} g6 {[%emt 0:00:30]} 9. O-O {[%emt 0:02:30]} Bg7 {[%emt 0:00:00]} 10. c3 {[%emt 0:04:30]} O-O {[%emt 0:00:00]} 11. Re1 {[%emt 0:03:30]} Qb6 {[%emt 0:02:30]} 12. Nd3 {[%emt 0:03:30]} Rfe8 {[%emt 0:04:30]} 13. Bf4 {[%emt 0:10:30]} Rad8 {[%emt 0:05:30] The position is equal.} 14. Bf1 {[%emt 0:02:30][%cal Oe1e6,Be2f1,Bf1d3,Bd3c4][%mdl 32]} Bc4 {[%emt 0:00:30]} 15. Qc2 {[%emt 0:02:30]} e6 {[%emt 0:03:30]} 16. h3 {[%emt 0:05:30]} Nd5 {[%emt 0:02:30] [#] And now ...Bxd3 would win.} 17. Bg3 {[%emt 0:02:30]} Bxd3 {[%emt 0:01:30]} 18. Bxd3 {[%emt 0:00:30]} Rd7 {[%emt 0:00:30]} 19. a4 {[%emt 0:04:30][%cal Ba2a4,Ba4a5][%mdl 32]} a6 {[%emt 0:00:30]} 20. a5 {[%emt 0:04:30]} Qd8 {[%emt 0:00:30]} 21. Bc4 {[%emt 0:00:30]} Bf8 {[%emt 0:09:30]} 22. b4 {[%emt 0:04:30]} Bd6 {[%emt 0:01:30]} 23. Bxd6 {[%emt 0:01:30]} Rxd6 {[%emt 0:00:00]} 24. g3 {[%emt 0:00:30]} h5 {[%emt 0:03:00]} 25. h4 {[%emt 0:01:30]} Nf6 {[%emt 0:00:30]} 26. Re2 {[%emt 0:01:30]} Ng4 {[%emt 0:01:30]} 27. Rae1 {[%emt 0:01:30]} Kg7 {[%emt 0:00:30]} 28. Qc1 {[%emt 0:03:30]} Rd7 {[%emt 0:00:30]} 29. Kg2 {[%emt 0:02:30]} Rde7 {[%emt 0:01:30]} 30. Qf4 {[%emt 0:00:30]} Qc7 {[%emt 0:00:30] Weighted Error Value: White=0.03 (flawless) /Black=0.04 (flawless) .  OK:         	White=6     	Black=11} 1/2-1/2

[Event "German Bundesliga 2024-25"]
[Site "Germany"]
[Date "2025.01.12"]
[Round "6"]
[White "Korobov, Anton"]
[Black "Heimann, Andreas"]
[Result "1/2-1/2"]
[Annotator "TA"]
[ECO "A08"]
[WhiteElo "2636"]
[BlackElo "2553"]
[PlyCount "47"]
[EventDate "2024.09.27"]
[EventType "team-tourn"]
[EventCountry "GER"]
[SourceTitle "playchess.com"]
[Source "ChessBase"]
[SourceQuality "1"]
[WhiteTeam "Viernheim"]
[BlackTeam "Deizisau"]
[TimeControl "40/5400+30:1800+30"]

{[%evp 22,47,0,-7,0,-25,0,0,0,0,0,0,36,0,0,0,0,0,0,-24,0,0,0,0,0,-61,-14,-49]} 1. Nf3 {[%emt 0:01:00]} d5 {[%emt 0:01:00]} 2. g3 {[%emt 0:00:00]} c5 {[%emt 0:02:30]} 3. Bg2 {[%emt 0:00:00]} Nf6 {[%emt 0:00:30]} 4. O-O {[%emt 0:00:30]} g6 {[%emt 0:00:00]} 5. d3 {[%emt 0:02:30]} Bg7 {[%emt 0:01:00]} 6. Nbd2 {[%emt 0:02:30]} O-O {[%emt 0:05:30]} 7. e4 {[%emt 0:00:30]} Nc6 {[%emt 0:00:30]} 8. Re1 {[%emt 0:00:30]} e5 {[%emt 0:10:30]} 9. exd5 {[%emt 0:01:30]} Nxd5 {[%emt 0:00:00]} 10. Nc4 {[%emt 0:00:00]} f6 {[%emt 0:04:00]} 11. c3 {[%emt 0:06:00]} Be6 {[%emt 0:00:30]} 12. a4 {[%emt 0:00:00]} Qc7 {[%emt 0:04:30]} 13. a5 {[%emt 0:02:00]} b5 {[%emt 0:03:30]} 14. axb6 {[%emt 0:05:30]} axb6 {[%emt 0:00:00]} 15. Rxa8 {[%emt 0:03:30]} Rxa8 {[%emt 0:00:00]} 16. Nfd2 {[%emt 0:05:30]} Rb8 {[%emt 0:28:30]} 17. Na3 {[%emt 0:12:30]} (17. f4 $5) 17... Qd7 {[%emt 0:10:30]} 18. Qa4 {[%emt 0:01:30]} Nde7 {[%emt 0:02:30]} 19. Ndc4 {[%emt 0:08:30]} Bd5 {[%emt 0:03:30]} 20. Bxd5+ {[%emt 0:03:30]} Qxd5 {[%emt 0:00:30]} 21. Rd1 {[%emt 0:02:30]} h5 {[%emt 0:06:50]} 22. Nb5 {[%emt 0:01:30]} Kh7 {[%emt 0:00:09]} 23. h4 {[%emt 0:10:30]} ({White should play} 23. Nbd6 $11) 23... Qf3 {[%emt 0:02:44]} (23... Nf5 $15) 24. Qc2 {[%emt 0:05:30]} 1/2-1/2

[Event "German Bundesliga 2024-25"]
[Site "Germany"]
[Date "2025.01.12"]
[Round "6"]
[White "Kamsky, Gata"]
[Black "Sarana, Alexey"]
[Result "1-0"]
[Annotator "TA"]
[ECO "D78"]
[WhiteElo "2609"]
[BlackElo "2679"]
[PlyCount "91"]
[EventDate "2024.09.27"]
[EventType "team-tourn"]
[EventCountry "GER"]
[SourceTitle "playchess.com"]
[Source "ChessBase"]
[SourceQuality "1"]
[WhiteTeam "Deizisau"]
[BlackTeam "Viernheim"]
[TimeControl "40/5400+30:1800+30"]

{[%evp 13,91,0,26,15,20,0,11,0,17,3,38,21,22,12,21,12,25,16,14,4,12,11,13,13,20,16,20,15,20,-14,34,34,43,28,47,15,39,33,50,74,80,77,77,83,72,63,92,97,112,116,169,198,189,176,198,185,210,183,236,207,229,221,220,209,265,215,504,210,526,524,1519,1760,1776,1839,1410,767,764,754,1615,1577]} 1. Nf3 {[%emt 0:02:00]} d5 {[%emt 0:01:00]} 2. g3 {[%emt 0:00:30]} g6 {[%emt 0:01:30]} 3. Bg2 {[%emt 0:00:30]} Bg7 {[%emt 0:00:30]} 4. d4 {[%emt 0:00:30]} Nf6 {[%emt 0:01:30]} 5. O-O {[%emt 0:00:30]} O-O {[%emt 0:01:30]} 6. c4 {[%emt 0:00:00]} c6 {[%emt 0:00:00]} 7. Qb3 {[%emt 0:00:00]} a5 {[%emt 0:02:00][%cal Ba7a5,Ba5a4][%mdl 32]} 8. cxd5 {[%emt 0:00:30]} a4 {[%emt 0:01:30]} 9. Qd1 {[%emt 0:00:30]} cxd5 {[%emt 0:00:30]} 10. Nc3 {[%emt 0:00:30]} Qa5 {[%emt 0:01:30]} 11. Bd2 {[%emt 0:08:30]} Qa7 {[%emt 0:08:30]} 12. e3 {[%emt 0:04:30]} Nc6 {[%emt 0:06:30]} 13. Qe2 {[%emt 0:03:30]} e6 {[%emt 0:06:30]} 14. Rfc1 {[%emt 0:01:30]} Bd7 {[%emt 0:00:30]} 15. Ne5 {[%emt 0:06:30]} Nxe5 {[%emt 0:09:30]} 16. dxe5 {[%emt 0:00:30]} Ne8 {[%emt 0:00:00]} 17. e4 {[%emt 0:00:30]} d4 {[%emt 0:15:00]} 18. Nb5 {[%emt 0:01:30][%cal Bc3b5,Bb5a3,Ba3c4,Bc4a5,Ba5b3,Bb3c5][%mdl 32]} Qb6 {[%emt 0:00:30]} 19. Na3 {[%emt 0:00:30]} Bxe5 {[%emt 0:06:30]} 20. Nc4 {[%emt 0:00:30][%csl LRb6,LRe5] Inhibits Nd6.} Qa6 {[%emt 0:00:30]} 21. Qe1 {[%emt 0:05:30][%mdl 1024] White has compensation.} (21. Qd1 $5 f6 22. Bb4 $11) 21... Bb8 {[%emt 0:00:30]} (21... Bc7 $11) 22. e5 {[%emt 0:06:30]} Ng7 {[%emt 0:01:30] Black is weak on the dark squares} 23. Na5 {[%emt 0:16:30]} Ra7 $1 {[%emt 0:03:30]} 24. b4 $1 {[%emt 0:05:30]} axb3 {[%emt 0:06:30]} 25. Nxb3 {[%emt 0:00:30][%cal Ob3c5]} Bc6 {[%emt 0:05:52]} 26. Nc5 $36 {[%emt 0:08:30][%mdl 2048] White has strong initiative.} Qb6 {[%emt 0:00:08]} 27. Rab1 {[%emt 0:00:00]} Qd8 {[%emt 0:00:30]} 28. Nxb7 {[%emt 0:01:00]} Bxb7 {[%emt 0:02:34]} 29. Bxb7 {[%emt 0:02:30]} Bc7 {[%emt 0:01:24] [#]} 30. Qe4 $1 {[%emt 0:03:30] Dodges Nf5} Ba5 {[%emt 0:01:54]} 31. Rc8 {[%emt 0:02:30] White has more active pieces.} Bxd2 {[%emt 0:00:33]} (31... Qxc8 $16 32. Bxc8 Bxd2) 32. Rxd8 $18 {[%emt 0:00:30]} Rxd8 {[%emt 0:00:02]} 33. Qc2 {[%emt 0:05:22]} Bc3 {[%emt 0:00:48]} 34. a4 {[%emt 0:01:43]} Nf5 {[%emt 0:05:06]} 35. Kg2 {[%emt 0:03:59]} Ne7 {[%emt 0:01:06]} (35... Rb8) 36. Rb5 {[%emt 0:00:08]} Kg7 {[%emt 0:01:42]} 37. Qb3 {[%emt 0:01:16]} Rd7 {[%emt 0:01:08]} 38. Be4 {[%emt 0:02:09]} Rdc7 {[%emt 0:00:32]} 39. Rb8 {[%emt 0:01:39] Hoping for Qb5.} Rd7 $2 {[%emt 0:02:29]} (39... d3 {was called for.} 40. Bxd3 Bxe5) 40. Qa3 {[%emt 0:01:54]} (40. Re8 $142) 40... Ra5 $2 {[%emt 0:01:24] [#]} (40... Rac7) 41. Bc6 $1 {[%emt 0:04:20][%mdl 512]} Rda7 {[%emt 0:19:02]} (41... Rc7 42. Qd6) 42. Bb7 {[%emt 0:01:30]} Rxb7 {[%emt 0:01:51]} 43. Rxb7 {[%emt 0:00:30]} Nc6 {[%emt 0:00:03]} 44. Rb5 {[%emt 0:03:30]} Ra8 {[%emt 0:00:41]} 45. Qd6 {[%emt 0:00:30]} Ra6 {[%emt 0:00:40]} 46. Rb7 {[%emt 0:00:30]} 1-0

[Event "German Bundesliga 2024-25"]
[Site "Germany"]
[Date "2025.01.12"]
[Round "6"]
[White "Dardha, Daniel"]
[Black "Mamedyarov, Shakhriyar"]
[Result "1/2-1/2"]
[Annotator "TA"]
[ECO "C47"]
[WhiteElo "2606"]
[BlackElo "2732"]
[PlyCount "44"]
[EventDate "2024.09.27"]
[EventType "team-tourn"]
[EventCountry "GER"]
[SourceTitle "playchess.com"]
[Source "ChessBase"]
[SourceQuality "1"]
[WhiteTeam "Deizisau"]
[BlackTeam "Viernheim"]
[TimeControl "40/5400+30:1800+30"]

{[%evp 15,44,0,5,0,12,7,13,8,10,20,15,7,10,3,6,0,7,0,0,7,4,1,10,9,11,14,10,10,11,12,16]} 1. e4 {[%emt 0:01:00]} e5 {[%emt 0:01:00]} 2. Nf3 {[%emt 0:00:00]} Nc6 {[%emt 0:00:30]} 3. Nc3 {[%emt 0:02:00]} Nf6 {[%emt 0:00:30]} 4. d4 {[%emt 0:01:30]} exd4 {[%emt 0:03:30]} 5. Nxd4 {[%emt 0:01:30]} Bb4 {[%emt 0:01:30]} 6. Nxc6 {[%emt 0:00:00]} bxc6 {[%emt 0:00:00]} 7. Bd3 {[%emt 0:00:00]} O-O {[%emt 0:00:00]} 8. O-O {[%emt 0:00:30]} d5 {[%emt 0:00:30]} 9. exd5 {[%emt 0:00:30]} Bg4 {[%emt 0:02:30][%cal Bc8g4,Bg4h5,Bh5g6,Bg6c2,Bc2b1,Bb1a2][%mdl 32]} 10. f3 {[%emt 0:08:30]} Bh5 $1 {[%emt 0:01:30]} 11. dxc6 {[%emt 0:00:30]} Qd4+ $1 {[%emt 0:00:00]} 12. Kh1 {[%emt 0:00:30][%cal Od3h7] Hoping for Bxh7+!.} Bxc3 {[%emt 0:00:00]} 13. bxc3 {[%emt 0:00:30]} Qxc3 {[%emt 0:00:00]} 14. Rb1 {[%emt 0:05:30][%cal Ba1b1,Bb1b3,Bb3c3][%mdl 32]} Bg6 {[%emt 0:09:00]} 15. Rb3 {[%emt 0:02:30]} Qxc6 {[%emt 0:01:30]} 16. Bb5 {[%emt 0:05:30] A strong pair of Bishops.} Qxc2 {[%emt 0:04:30]} 17. Qxc2 {[%emt 0:00:30]} Bxc2 {[%emt 0:00:30]} 18. Rc3 {[%emt 0:00:30][%csl LRc2,LRc7]} Rab8 {[%emt 0:03:30]} 19. Be2 {[%emt 0:03:30]} Bb1 {[%emt 0:01:30]} 20. Rxc7 {[%emt 0:01:30]} Bxa2 {[%emt 0:00:30]} 21. Rxa7 {[%emt 0:00:30]} Ra8 {[%emt 0:00:30]} 22. Rxa8 {[%emt 0:00:00]} Rxa8 {[%emt 0:00:00]} 1/2-1/2